[Event "*** Titled Tuesday 3|2 Blitz"]
[Site "Chess.com"]
[Date "2016.08.02"]
[Round "2"]
[White "Iball95"]
[Black "Sanan_Sjugirov"]
[Result "1-0"]
[WhiteElo "2470"]
[BlackElo "2678"]
[TimeControl "180+2"]
[EndTime "11:27:22 PDT"]
[Termination "Iball95 won on time"]

1. e4 {[%clk 0:02:59.5]} 1... e5 {[%clk 0:03:00.4]} 2. Nf3 {[%clk 0:03:00.9]}
2... Nc6 {[%clk 0:03:01.7]} 3. Nc3 {[%clk 0:03:02.4]} 3... Nf6 {[%clk
0:03:01.5]} 4. Bb5 {[%clk 0:03:03.8]} 4... Bb4 {[%clk 0:03:01.8]} 5. O-O {[%clk
0:03:02.8]} 5... O-O {[%clk 0:03:02.3]} 6. d3 {[%clk 0:03:04.3]} 6... Bxc3
{[%clk 0:03:03.5]} 7. bxc3 {[%clk 0:03:06.2]} 7... d6 {[%clk 0:03:04.2]} 8. Bg5
{[%clk 0:03:07.1]} 8... Bd7 {[%clk 0:03:01.5]} 9. Rb1 {[%clk 0:03:06.6]} 9... a6
{[%clk 0:02:56.6]} 10. Ba4 {[%clk 0:03:07]} 10... b5 {[%clk 0:02:49.3]} 11. Bb3
{[%clk 0:03:08.3]} 11... h6 {[%clk 0:02:50.2]} 12. Bh4 {[%clk 0:03:08.5]} 12...
Be6 {[%clk 0:02:44.8]} 13. d4 {[%clk 0:02:54.6]} 13... Bxb3 {[%clk 0:02:04.4]}
14. cxb3 {[%clk 0:02:47.9]} 14... Re8 {[%clk 0:01:36.4]} 15. d5 {[%clk
0:02:35.4]} 15... Nb8 {[%clk 0:01:37.4]} 16. Nd2 {[%clk 0:02:29.7]} 16... Nbd7
{[%clk 0:01:37.6]} 17. Qe2 {[%clk 0:02:02.6]} 17... Qc8 {[%clk 0:01:28.5]} 18.
Ra1 {[%clk 0:02:00.7]} 18... c6 {[%clk 0:01:26.9]} 19. c4 {[%clk 0:01:54.7]}
19... Qb7 {[%clk 0:01:17.6]} 20. dxc6 {[%clk 0:01:49.9]} 20... Qxc6 {[%clk
0:01:18.5]} 21. Rac1 {[%clk 0:01:51.5]} 21... Rec8 {[%clk 0:01:09.2]} 22. Bxf6
{[%clk 0:01:43.4]} 22... Nxf6 {[%clk 0:01:09.5]} 23. f3 {[%clk 0:01:44.6]} 23...
b4 {[%clk 0:01:05]} 24. Rfd1 {[%clk 0:01:44]} 24... a5 {[%clk 0:01:05.9]} 25.
Nf1 {[%clk 0:01:37]} 25... a4 {[%clk 0:01:05.8]} 26. Ne3 {[%clk 0:01:37.7]}
26... axb3 {[%clk 0:01:06.7]} 27. axb3 {[%clk 0:01:39.2]} 27... g6 {[%clk
0:01:03.3]} 28. g3 {[%clk 0:01:37.3]} 28... Ra3 {[%clk 0:01:02.7]} 29. Rb1
{[%clk 0:01:37.7]} 29... Rca8 {[%clk 0:01:03.5]} 30. Kg2 {[%clk 0:01:37.7]}
30... Kg7 {[%clk 0:01:01]} 31. Nd5 {[%clk 0:01:38.2]} 31... Ra2 {[%clk
0:00:54.9]} 32. Rb2 {[%clk 0:01:37.8]} 32... Rxb2 {[%clk 0:00:53]} 33. Qxb2
{[%clk 0:01:39.7]} 33... Nxd5 {[%clk 0:00:47.8]} 34. Rxd5 {[%clk 0:01:41.6]}
34... Ra3 {[%clk 0:00:46.9]} 35. c5 {[%clk 0:01:39]} 35... dxc5 {[%clk
0:00:41.8]} 36. Qxe5+ {[%clk 0:01:36]} 36... Qf6 {[%clk 0:00:42.1]} 37. Rxc5
{[%clk 0:01:34.1]} 37... Rxb3 {[%clk 0:00:36.1]} 38. Qxf6+ {[%clk 0:01:25.2]}
38... Kxf6 {[%clk 0:00:38]} 39. Rb5 {[%clk 0:01:26.9]} 39... Rb2+ {[%clk
0:00:38.2]} 40. Kf1 {[%clk 0:01:25.1]} 40... Ke6 {[%clk 0:00:36.2]} 41. h4
{[%clk 0:01:23.2]} 41... Kd6 {[%clk 0:00:36.4]} 42. Ke1 {[%clk 0:01:19.1]} 42...
Kc6 {[%clk 0:00:37.5]} 43. Rb8 {[%clk 0:01:20.3]} 43... Kc5 {[%clk 0:00:38.4]}
44. Rb7 {[%clk 0:01:19]} 44... Rg2 {[%clk 0:00:37.7]} 45. g4 {[%clk 0:01:17.8]}
45... f6 {[%clk 0:00:33.7]} 46. Kd1 {[%clk 0:00:45]} 46... Rf2 {[%clk
0:00:29.9]} 47. Rg7 {[%clk 0:00:41.6]} 47... b3 {[%clk 0:00:23.5]} 48. Kc1
{[%clk 0:00:39]} 48... Kd4 {[%clk 0:00:22.8]} 49. g5 {[%clk 0:00:32.5]} 49...
fxg5 {[%clk 0:00:13.8]} 50. hxg5 {[%clk 0:00:34.4]} 50... hxg5 {[%clk
0:00:13.3]} 51. Rxg6 {[%clk 0:00:35.4]} 51... Rg2 {[%clk 0:00:10.2]} 52. Kb1
{[%clk 0:00:29.1]} 52... Ke3 {[%clk 0:00:09.8]} 53. e5 {[%clk 0:00:29.4]} 53...
Kxf3 {[%clk 0:00:09.8]} 54. e6 {[%clk 0:00:30.9]} 54... g4 {[%clk 0:00:09.7]}
55. e7 {[%clk 0:00:13]} 55... Re2 {[%clk 0:00:10.4]} 56. Rf6+ {[%clk 0:00:13.5]}
56... Kg2 {[%clk 0:00:08.7]} 57. Rf7 {[%clk 0:00:15.1]} 57... g3 {[%clk
0:00:08.6]} 58. Rg7 {[%clk 0:00:16.4]} 58... Kh2 {[%clk 0:00:08.4]} 59. Rh7+
{[%clk 0:00:17.1]} 59... Kg1 {[%clk 0:00:09.2]} 60. Rg7 {[%clk 0:00:19]} 60...
g2 {[%clk 0:00:10.6]} 61. Kc1 {[%clk 0:00:20.1]} 61... Kf1 {[%clk 0:00:06.1]}
62. Rf7+ {[%clk 0:00:21.2]} 62... Ke1 {[%clk 0:00:06.9]} 63. Rg7 {[%clk
0:00:21.9]} 63... Kf1 {[%clk 0:00:06.2]} 64. Rf7+ {[%clk 0:00:23.3]} 64... Kg1
{[%clk 0:00:07.7]} 65. Rg7 {[%clk 0:00:24.4]} 65... Rc2+ {[%clk 0:00:08.7]} 66.
Kb1 {[%clk 0:00:25.1]} 66... Rc8 {[%clk 0:00:07.1]} 67. Kb2 {[%clk 0:00:25.6]}
67... Rb8 {[%clk 0:00:08.4]} 68. Rg6 {[%clk 0:00:24]} 68... Re8 {[%clk
0:00:06.9]} 69. Rg7 {[%clk 0:00:25.3]} 69... Kf2 {[%clk 0:00:07.7]} 70. Rf7+
{[%clk 0:00:26.8]} 70... Kg3 {[%clk 0:00:09.1]} 71. Rg7+ {[%clk 0:00:28.1]}
71... Kf3 {[%clk 0:00:10.1]} 72. Rf7+ {[%clk 0:00:29.3]} 72... Ke2 {[%clk
0:00:11]} 73. Rg7 {[%clk 0:00:30.2]} 73... Kf1 {[%clk 0:00:12]} 74. Rf7+ {[%clk
0:00:31.5]} 74... Kg1 {[%clk 0:00:12.3]} 75. Rg7 {[%clk 0:00:32]} 75... Rb8
{[%clk 0:00:12.2]} 76. Rf7 {[%clk 0:00:32.8]} 76... Re8 {[%clk 0:00:06.5]} 77.
Rg7 {[%clk 0:00:33.8]} 77... Kf2 {[%clk 0:00:07.7]} 78. Rf7+ {[%clk 0:00:34.9]}
78... Kg3 {[%clk 0:00:09.2]} 79. Rg7+ {[%clk 0:00:36.3]} 79... Kf3 {[%clk
0:00:03.5]} 80. Rf7+ {[%clk 0:00:37.4]} 1-0

[Event "*** Titled Tuesday 3|2 Blitz"]
[Site "Chess.com"]
[Date "2016.08.02"]
[Round "2"]
[White "Dr-Bassem"]
[Black "danir29"]
[Result "1-0"]
[WhiteElo "2625"]
[BlackElo "2465"]
[TimeControl "180+2"]
[EndTime "11:27:51 PDT"]
[Termination "Dr-Bassem won by resignation"]

1. e4 {[%clk 0:02:59.7]} 1... e5 {[%clk 0:02:59.2]} 2. Nf3 {[%clk 0:03:00.5]}
2... Nc6 {[%clk 0:03:00.5]} 3. Bb5 {[%clk 0:03:01.1]} 3... a6 {[%clk 0:03:00.5]}
4. Ba4 {[%clk 0:03:01.9]} 4... Nf6 {[%clk 0:03:01.5]} 5. Qe2 {[%clk 0:03:03.2]}
5... b5 {[%clk 0:03:00.9]} 6. Bb3 {[%clk 0:03:04.1]} 6... Be7 {[%clk 0:02:59.2]}
7. a4 {[%clk 0:03:05.6]} 7... b4 {[%clk 0:02:54.7]} 8. d4 {[%clk 0:03:00.6]}
8... d6 {[%clk 0:02:48.1]} 9. Qc4 {[%clk 0:03:00.4]} 9... Kd7 {[%clk 0:02:09.1]}
10. Qxf7 {[%clk 0:02:56.2]} 10... Qe8 {[%clk 0:02:02.8]} 11. Qxe8+ {[%clk
0:02:05.7]} 11... Rxe8 {[%clk 0:02:00.7]} 12. dxe5 {[%clk 0:02:06.3]} 12... dxe5
{[%clk 0:02:00.9]} 13. Nbd2 {[%clk 0:01:53.1]} 13... Bd6 {[%clk 0:01:56.8]} 14.
O-O {[%clk 0:01:49.1]} 14... Ke7 {[%clk 0:01:56]} 15. h3 {[%clk 0:01:42.9]}
15... Be6 {[%clk 0:01:54.1]} 16. Bxe6 {[%clk 0:01:42.6]} 16... Kxe6 {[%clk
0:01:56]} 17. Re1 {[%clk 0:01:43.2]} 17... Rad8 {[%clk 0:01:54.7]} 18. Nc4
{[%clk 0:01:42.9]} 18... Bc5 {[%clk 0:01:53.5]} 19. Bg5 {[%clk 0:01:19.5]} 19...
Nd4 {[%clk 0:01:50.8]} 20. Bxf6 {[%clk 0:00:29.7]} 20... gxf6 {[%clk 0:01:50.5]}
21. Nxd4+ {[%clk 0:00:29.3]} 21... Rxd4 {[%clk 0:01:52.4]} 22. b3 {[%clk
0:00:29.5]} 22... Red8 {[%clk 0:01:53.2]} 23. Kf1 {[%clk 0:00:30.1]} 23... h5
{[%clk 0:01:53.5]} 24. f3 {[%clk 0:00:28.6]} 24... Ba7 {[%clk 0:01:51.9]} 25.
Ke2 {[%clk 0:00:28.8]} 25... f5 {[%clk 0:01:52.6]} 26. exf5+ {[%clk 0:00:26]}
26... Kxf5 {[%clk 0:01:54.5]} 27. Kf1 {[%clk 0:00:25.7]} 27... e4 {[%clk
0:01:49.8]} 28. fxe4+ {[%clk 0:00:25]} 28... Rxe4 {[%clk 0:01:51.7]} 29. Rxe4
{[%clk 0:00:25.9]} 29... Kxe4 {[%clk 0:01:53.6]} 30. Re1+ {[%clk 0:00:26.8]}
30... Kf4 {[%clk 0:01:55.2]} 31. Re7 {[%clk 0:00:26.3]} 31... Bb6 {[%clk
0:01:47.6]} 32. a5 {[%clk 0:00:25.8]} 32... Bd4 {[%clk 0:01:48.4]} 33. Rxc7
{[%clk 0:00:25.1]} 33... Kg3 {[%clk 0:01:49.4]} 34. Rf7 {[%clk 0:00:24.7]} 34...
Re8 {[%clk 0:01:48.6]} 35. Rf3+ {[%clk 0:00:24.2]} 35... Kh2 {[%clk 0:01:49.9]}
36. g4 {[%clk 0:00:24.9]} 36... hxg4 {[%clk 0:01:50]} 37. hxg4 {[%clk
0:00:26.8]} 37... Rg8 {[%clk 0:01:51.6]} 38. Rf4 {[%clk 0:00:26.7]} 38... Bc3
{[%clk 0:01:50.5]} 39. Ne3 {[%clk 0:00:25.1]} 39... Kg3 {[%clk 0:01:50.5]} 40.
Rf7 {[%clk 0:00:22.3]} 40... Rg5 {[%clk 0:01:48.8]} 41. Rf5 {[%clk 0:00:21]}
41... Rg8 {[%clk 0:01:48]} 42. Ke2 {[%clk 0:00:21.5]} 42... Rd8 {[%clk 0:01:48]}
43. g5 {[%clk 0:00:20.6]} 43... Rd2+ {[%clk 0:01:48.9]} 44. Kf1 {[%clk
0:00:21.7]} 44... Bd4 {[%clk 0:01:48.5]} 45. g6 {[%clk 0:00:16.8]} 45... Bc3
{[%clk 0:01:10.3]} 46. g7 {[%clk 0:00:15.5]} 46... Bxg7 {[%clk 0:01:08.6]} 47.
Nc4 {[%clk 0:00:13.6]} 47... Rd7 {[%clk 0:01:06.6]} 48. Ke2 {[%clk 0:00:13.7]}
48... Bc3 {[%clk 0:01:07.5]} 49. Ke3 {[%clk 0:00:14.3]} 49... Re7+ {[%clk
0:01:07.9]} 50. Kd3 {[%clk 0:00:14.4]} 50... Rd7+ {[%clk 0:01:08.4]} 51. Ke4
{[%clk 0:00:14.3]} 51... Kg4 {[%clk 0:01:08.9]} 52. Rf4+ {[%clk 0:00:13.4]}
52... Kg3 {[%clk 0:01:09.8]} 53. Rf8 {[%clk 0:00:12.8]} 53... Rd4+ {[%clk
0:01:06.7]} 54. Ke3 {[%clk 0:00:13.2]} 54... Rd1 {[%clk 0:01:06.9]} 55. Rg8+
{[%clk 0:00:13.4]} 55... Kh4 {[%clk 0:01:08]} 56. Rg6 {[%clk 0:00:13.7]} 56...
Re1+ {[%clk 0:00:57.2]} 57. Kf3 {[%clk 0:00:12]} 57... Rf1+ {[%clk 0:00:58.2]}
58. Ke4 {[%clk 0:00:12.7]} 58... Re1+ {[%clk 0:00:57.4]} 59. Kd5 {[%clk
0:00:12.7]} 59... Rc1 {[%clk 0:00:56.2]} 60. Ne3 {[%clk 0:00:09.9]} 60... Bd2
{[%clk 0:00:53.6]} 61. Nf5+ {[%clk 0:00:09.2]} 61... Kh5 {[%clk 0:00:53.3]} 62.
Rxa6 {[%clk 0:00:09.2]} 62... Rxc2 {[%clk 0:00:54.6]} 63. Nd4 {[%clk 0:00:09.9]}
63... Rb2 {[%clk 0:00:51.8]} 64. Ra8 {[%clk 0:00:08.7]} 64... Bc3 {[%clk
0:00:52.9]} 65. a6 {[%clk 0:00:06.6]} 65... Rd2 {[%clk 0:00:53.8]} 66. Rh8+
{[%clk 0:00:06.1]} 66... Kg4 {[%clk 0:00:52.5]} 67. a7 {[%clk 0:00:06.9]} 67...
Bxd4 {[%clk 0:00:51]} 68. Rg8+ {[%clk 0:00:07.7]} 68... Bg7+ {[%clk 0:00:50.8]}
69. Kc4 {[%clk 0:00:07.1]} 69... Ra2 {[%clk 0:00:48.1]} 70. a8=Q {[%clk
0:00:06.9]} 70... Rxa8 {[%clk 0:00:38.5]} 71. Rxa8 {[%clk 0:00:08.8]} 71... Bc3
{[%clk 0:00:40]} 72. Rb8 {[%clk 0:00:07.6]} 72... Kf5 {[%clk 0:00:41.4]} 73.
Rxb4 {[%clk 0:00:08.6]} 73... Be1 {[%clk 0:00:43.3]} 74. Rb6 {[%clk 0:00:09]}
74... Ke5 {[%clk 0:00:44.3]} 75. Rc6 {[%clk 0:00:10.2]} 75... Bf2 {[%clk
0:00:44.9]} 76. b4 {[%clk 0:00:11.2]} 76... Bg1 {[%clk 0:00:45.1]} 77. b5 {[%clk
0:00:12.1]} 77... Bf2 {[%clk 0:00:46.1]} 78. b6 {[%clk 0:00:13.3]} 78... Bg1
{[%clk 0:00:46.3]} 79. b7 {[%clk 0:00:13.5]} 79... Ba7 {[%clk 0:00:47.5]} 80.
Rc8 {[%clk 0:00:12.1]} 80... Kd6 {[%clk 0:00:31.7]} 81. Kb5 {[%clk 0:00:13.3]}
81... Kd7 {[%clk 0:00:32.1]} 82. Ka6 {[%clk 0:00:14]} 82... Bb8 {[%clk
0:00:29.8]} 83. Rxb8 {[%clk 0:00:14.6]} 1-0

[Event "*** Titled Tuesday 3|2 Blitz"]
[Site "Chess.com"]
[Date "2016.08.02"]
[Round "3"]
[White "MMSANCHEZ"]
[Black "Nadtkins"]
[Result "0-1"]
[WhiteElo "2278"]
[BlackElo "2458"]
[TimeControl "180+2"]
[EndTime "11:31:26 PDT"]
[Termination "Nadtkins won by resignation"]

1. d4 {[%clk 0:03:01.9]} 1... d6 {[%clk 0:02:59.7]} 2. Nf3 {[%clk 0:03:03.3]}
2... Nf6 {[%clk 0:03:00]} 3. c4 {[%clk 0:03:03.9]} 3... g6 {[%clk 0:03:01.1]} 4.
Nc3 {[%clk 0:03:05.1]} 4... Bf5 {[%clk 0:03:02.7]} 5. Nh4 {[%clk 0:03:05.1]}
5... Bd7 {[%clk 0:03:03.3]} 6. e4 {[%clk 0:03:05.8]} 6... e5 {[%clk 0:03:03.3]}
7. d5 {[%clk 0:03:05.4]} 7... Bg7 {[%clk 0:03:00.8]} 8. Nf3 {[%clk 0:03:05.8]}
8... a5 {[%clk 0:03:01.3]} 9. Be2 {[%clk 0:03:06.1]} 9... Na6 {[%clk 0:03:02.5]}
10. h3 {[%clk 0:03:07.4]} 10... Nc5 {[%clk 0:03:03.8]} 11. Qc2 {[%clk
0:03:07.8]} 11... O-O {[%clk 0:03:03.6]} 12. Be3 {[%clk 0:03:08.6]} 12... b6
{[%clk 0:02:54.3]} 13. O-O-O {[%clk 0:03:08.1]} 13... a4 {[%clk 0:02:50.6]} 14.
Nd2 {[%clk 0:03:08.4]} 14... c6 {[%clk 0:02:42.6]} 15. Kb1 {[%clk 0:03:04.5]}
15... cxd5 {[%clk 0:02:42.5]} 16. cxd5 {[%clk 0:03:05.2]} 16... Qb8 {[%clk
0:02:33.7]} 17. Nb5 {[%clk 0:02:56.9]} 17... Rc8 {[%clk 0:02:32.1]} 18. f3
{[%clk 0:02:48.1]} 18... Ncxe4 {[%clk 0:02:29.3]} 19. Qd3 {[%clk 0:02:41.1]}
19... Ng3 {[%clk 0:02:28.2]} 20. Rhe1 {[%clk 0:02:37.5]} 20... Bf5 {[%clk
0:02:29]} 21. Ne4 {[%clk 0:02:36.5]} 0-1

[Event "*** Titled Tuesday 3|2 Blitz"]
[Site "Chess.com"]
[Date "2016.08.02"]
[Round "3"]
[White "fpawn"]
[Black "macko06"]
[Result "0-1"]
[WhiteElo "2223"]
[BlackElo "2105"]
[TimeControl "180+2"]
[EndTime "11:32:30 PDT"]
[Termination "macko06 won by resignation"]

1. e4 {[%clk 0:02:38.6]} 1... e6 {[%clk 0:03:01.3]} 2. d4 {[%clk 0:02:39]} 2...
d5 {[%clk 0:03:02.8]} 3. Nc3 {[%clk 0:02:39.9]} 3... Bb4 {[%clk 0:03:03.1]} 4.
e5 {[%clk 0:02:40.3]} 4... c5 {[%clk 0:03:04.7]} 5. a3 {[%clk 0:02:41.3]} 5...
Bxc3+ {[%clk 0:03:05.9]} 6. bxc3 {[%clk 0:02:42.4]} 6... Ne7 {[%clk 0:03:07.1]}
7. Qg4 {[%clk 0:02:43.2]} 7... Qc7 {[%clk 0:03:08.4]} 8. Qxg7 {[%clk 0:02:43.3]}
8... Rg8 {[%clk 0:03:10.1]} 9. Qxh7 {[%clk 0:02:44.8]} 9... cxd4 {[%clk
0:03:11.7]} 10. Ne2 {[%clk 0:02:45.4]} 10... dxc3 {[%clk 0:03:11.1]} 11. f4
{[%clk 0:02:45.4]} 11... Nbc6 {[%clk 0:03:11.8]} 12. Qd3 {[%clk 0:02:45.4]}
12... Bd7 {[%clk 0:03:12.1]} 13. Qxc3 {[%clk 0:02:44.3]} 13... O-O-O {[%clk
0:03:04.8]} 14. Rb1 {[%clk 0:02:25.1]} 14... Nf5 {[%clk 0:02:48.5]} 15. Rg1
{[%clk 0:02:24.1]} 15... d4 {[%clk 0:02:42.4]} 16. Qc5 {[%clk 0:02:21]} 16... b6
{[%clk 0:02:41.5]} 17. Qc4 {[%clk 0:01:41.8]} 17... Nce7 {[%clk 0:02:19.4]} 18.
g4 {[%clk 0:01:32.8]} 18... Qxc4 {[%clk 0:02:18.8]} 0-1

[Event "*** Titled Tuesday 3|2 Blitz"]
[Site "Chess.com"]
[Date "2016.08.02"]
[Round "3"]
[White "Superfelix"]
[Black "workhard91"]
[Result "0-1"]
[WhiteElo "2361"]
[BlackElo "2377"]
[TimeControl "180+2"]
[EndTime "11:34:12 PDT"]
[Termination "workhard91 won by resignation"]

1. e4 {[%clk 0:03:01.9]} 1... c5 {[%clk 0:03:00.3]} 2. Nf3 {[%clk 0:03:02.8]}
2... Nc6 {[%clk 0:03:01.5]} 3. Bb5 {[%clk 0:03:03.1]} 3... d6 {[%clk 0:03:02.5]}
4. O-O {[%clk 0:03:03.7]} 4... Bd7 {[%clk 0:03:03.3]} 5. Re1 {[%clk 0:03:04.9]}
5... Nf6 {[%clk 0:03:04.1]} 6. c3 {[%clk 0:03:05.7]} 6... a6 {[%clk 0:03:05.3]}
7. Bc4 {[%clk 0:03:07.2]} 7... b5 {[%clk 0:02:30.1]} 8. Bf1 {[%clk 0:03:07.7]}
8... e5 {[%clk 0:02:14.6]} 9. a4 {[%clk 0:03:08]} 9... Rb8 {[%clk 0:02:14.7]}
10. d4 {[%clk 0:02:57.3]} 10... Bg4 {[%clk 0:02:12.1]} 11. dxc5 {[%clk 0:02:53]}
11... dxc5 {[%clk 0:02:14]} 12. Qxd8+ {[%clk 0:02:53.7]} 12... Kxd8 {[%clk
0:02:04.2]} 13. axb5 {[%clk 0:02:54.4]} 13... axb5 {[%clk 0:02:04.8]} 14. Ra6
{[%clk 0:02:42.5]} 14... Bxf3 {[%clk 0:01:53.7]} 15. gxf3 {[%clk 0:02:15.1]}
15... Kc7 {[%clk 0:01:51.4]} 16. Be3 {[%clk 0:02:01.5]} 16... Bd6 {[%clk
0:01:25.6]} 17. Na3 {[%clk 0:02:01]} 17... c4 {[%clk 0:01:25.9]} 18. Nc2 {[%clk
0:01:44]} 18... Ra8 {[%clk 0:01:19.7]} 19. Rea1 {[%clk 0:01:42.2]} 19... Rxa6
{[%clk 0:01:20.6]} 20. Rxa6 {[%clk 0:01:44.1]} 20... Rb8 {[%clk 0:01:22.1]} 21.
Bg5 {[%clk 0:01:27.1]} 21... Nd7 {[%clk 0:01:14.8]} 22. Ne3 {[%clk 0:01:24.7]}
22... Nc5 {[%clk 0:01:16.2]} 23. Nd5+ {[%clk 0:01:24.6]} 23... Kd7 {[%clk
0:01:17.4]} 24. Be3 {[%clk 0:01:19.5]} 24... Nxa6 {[%clk 0:01:17.5]} 0-1

[Event "*** Titled Tuesday 3|2 Blitz"]
[Site "Chess.com"]
[Date "2016.08.02"]
[Round "3"]
[White "psv98"]
[Black "StellarChessPro"]
[Result "1-0"]
[WhiteElo "2599"]
[BlackElo "2350"]
[TimeControl "180+2"]
[EndTime "11:35:02 PDT"]
[Termination "psv98 won by resignation"]

1. Nf3 {[%clk 0:03:01.9]} 1... d5 {[%clk 0:03:01.1]} 2. g3 {[%clk 0:03:03]} 2...
c6 {[%clk 0:03:02.5]} 3. Bg2 {[%clk 0:03:04.4]} 3... Nf6 {[%clk 0:03:04.4]} 4.
c4 {[%clk 0:03:04.7]} 4... Nbd7 {[%clk 0:03:06.3]} 5. O-O {[%clk 0:03:04.1]}
5... e6 {[%clk 0:03:07.5]} 6. Qc2 {[%clk 0:03:04.2]} 6... Bd6 {[%clk 0:03:08.7]}
7. d4 {[%clk 0:03:03.8]} 7... O-O {[%clk 0:03:10]} 8. Nbd2 {[%clk 0:03:05.3]}
8... b6 {[%clk 0:03:09.9]} 9. e4 {[%clk 0:03:06.5]} 9... dxe4 {[%clk 0:03:10.8]}
10. Nxe4 {[%clk 0:03:07.7]} 10... Nxe4 {[%clk 0:03:12]} 11. Qxe4 {[%clk
0:03:09.3]} 11... Bb7 {[%clk 0:03:12.1]} 12. Rd1 {[%clk 0:03:07.9]} 12... h6
{[%clk 0:03:11]} 13. Bf4 {[%clk 0:03:05.2]} 13... Qc7 {[%clk 0:03:11.8]} 14.
Bxd6 {[%clk 0:03:04.6]} 14... Qxd6 {[%clk 0:03:13.7]} 15. Ne5 {[%clk 0:03:03.8]}
15... Rac8 {[%clk 0:03:12.9]} 16. c5 {[%clk 0:02:56.1]} 16... Qc7 {[%clk
0:03:06.3]} 17. Nxd7 {[%clk 0:02:51.2]} 17... Qxd7 {[%clk 0:03:06]} 18. b4
{[%clk 0:02:52.3]} 18... Rfd8 {[%clk 0:03:03.6]} 19. Bf3 {[%clk 0:02:49.6]}
19... Ba6 {[%clk 0:03:01.3]} 20. Rac1 {[%clk 0:02:49.3]} 20... Bb5 {[%clk
0:02:54.6]} 21. Kg2 {[%clk 0:02:50.3]} 21... Qd5 {[%clk 0:02:42.6]} 22. Qc2
{[%clk 0:02:28.3]} 22... Qd7 {[%clk 0:02:40.5]} 23. a4 {[%clk 0:02:29.1]} 23...
Ba6 {[%clk 0:02:39]} 24. h4 {[%clk 0:02:24.5]} 24... Qe7 {[%clk 0:02:27.5]} 25.
Qe4 {[%clk 0:02:12.9]} 25... Rd5 {[%clk 0:02:02.9]} 26. Qe3 {[%clk 0:02:09]}
26... Rdd8 {[%clk 0:02:00.7]} 27. Qe5 {[%clk 0:02:04.4]} 27... f6 {[%clk
0:01:59.5]} 28. Qe3 {[%clk 0:02:04.2]} 28... e5 {[%clk 0:01:59.3]} 29. dxe5
{[%clk 0:02:04.2]} 29... fxe5 {[%clk 0:01:57.1]} 30. Rxd8+ {[%clk 0:02:03.3]}
30... Rxd8 {[%clk 0:01:56.7]} 31. cxb6 {[%clk 0:02:04]} 31... Rd3 {[%clk
0:01:37.7]} 32. bxa7 {[%clk 0:02:00.4]} 32... Qf8 {[%clk 0:01:25.7]} 33. Qxd3
{[%clk 0:01:57.6]} 33... Bxd3 {[%clk 0:01:23.1]} 34. Bxc6 {[%clk 0:01:58.4]}
34... Kh7 {[%clk 0:00:35.2]} 35. a8=Q {[%clk 0:01:58.6]} 1-0

[Event "*** Titled Tuesday 3|2 Blitz"]
[Site "Chess.com"]
[Date "2016.08.02"]
[Round "3"]
[White "AdrianaNikolova"]
[Black "MaestroASK"]
[Result "0-1"]
[WhiteElo "2273"]
[BlackElo "2486"]
[TimeControl "180+2"]
[EndTime "11:36:17 PDT"]
[Termination "MaestroASK won on time"]

1. e4 {[%clk 0:03:01.9]} 1... d6 {[%clk 0:03:00.9]} 2. d4 {[%clk 0:03:02.2]}
2... g6 {[%clk 0:03:02.8]} 3. Nc3 {[%clk 0:03:03.5]} 3... c6 {[%clk 0:03:04.1]}
4. Be3 {[%clk 0:03:02.8]} 4... e5 {[%clk 0:03:05]} 5. Nge2 {[%clk 0:03:02.5]}
5... Bg7 {[%clk 0:03:05.5]} 6. h3 {[%clk 0:03:03]} 6... Nd7 {[%clk 0:03:05.9]}
7. g4 {[%clk 0:03:02.9]} 7... Ngf6 {[%clk 0:03:05]} 8. Bg2 {[%clk 0:03:02.4]}
8... h5 {[%clk 0:03:05.6]} 9. g5 {[%clk 0:03:02.7]} 9... Nh7 {[%clk 0:03:06.3]}
10. h4 {[%clk 0:03:01.7]} 10... O-O {[%clk 0:03:05.8]} 11. Qd2 {[%clk
0:02:56.8]} 11... Qe7 {[%clk 0:03:05.6]} 12. O-O-O {[%clk 0:02:56.9]} 12... Re8
{[%clk 0:03:05.8]} 13. f4 {[%clk 0:02:51]} 13... exf4 {[%clk 0:03:06.1]} 14.
Bxf4 {[%clk 0:02:48.5]} 14... Nb6 {[%clk 0:03:06.6]} 15. b3 {[%clk 0:02:47.6]}
15... Nf8 {[%clk 0:03:06.1]} 16. Rhf1 {[%clk 0:02:46]} 16... Bg4 {[%clk
0:03:05.6]} 17. Rde1 {[%clk 0:02:46.1]} 17... Rad8 {[%clk 0:03:03.2]} 18. Ng3
{[%clk 0:02:46.5]} 18... Ne6 {[%clk 0:02:57.7]} 19. Be3 {[%clk 0:02:45.5]} 19...
d5 {[%clk 0:02:57.7]} 20. e5 {[%clk 0:02:45.1]} 20... Qa3+ {[%clk 0:02:54.2]}
21. Kb1 {[%clk 0:02:41.8]} 21... a5 {[%clk 0:02:53]} 22. Qc1 {[%clk 0:02:39.6]}
22... Qb4 {[%clk 0:02:48.9]} 23. Qd2 {[%clk 0:02:32.7]} 23... a4 {[%clk
0:02:48.7]} 24. Nce2 {[%clk 0:02:19.2]} 24... Qb5 {[%clk 0:02:40.4]} 25. Ka1
{[%clk 0:01:55.1]} 25... Ra8 {[%clk 0:02:36.9]} 26. Nc1 {[%clk 0:01:39.7]} 26...
axb3 {[%clk 0:02:34.2]} 27. cxb3 {[%clk 0:01:38.3]} 27... Bf8 {[%clk 0:02:28.6]}
28. Qf2 {[%clk 0:01:36]} 28... Nd8 {[%clk 0:02:19.6]} 29. Bd2 {[%clk 0:01:16.1]}
29... Ba3 {[%clk 0:02:14.6]} 30. Bc3 {[%clk 0:01:14.5]} 30... Re7 {[%clk
0:01:51.8]} 31. Qc2 {[%clk 0:01:11.1]} 31... Ne6 {[%clk 0:01:47.3]} 32. Rf2
{[%clk 0:01:08.9]} 32... Bb4 {[%clk 0:01:44]} 33. Bf1 {[%clk 0:01:05.4]} 33...
Qa5 {[%clk 0:01:44.8]} 34. Bxb4 {[%clk 0:01:01.8]} 34... Qxb4 {[%clk 0:01:45.4]}
35. Bd3 {[%clk 0:00:37.1]} 35... Qxe1 {[%clk 0:01:40.5]} 36. Bxg6 {[%clk
0:00:34.2]} 36... Nxd4 {[%clk 0:01:40.6]} 37. Bh7+ {[%clk 0:00:13.1]} 37... Kh8
{[%clk 0:01:40.8]} 38. Qd3 {[%clk 0:00:02.5]} 38... Qxc1+ {[%clk 0:01:40.2]} 0-1